[Event "Late-Titled-Tuesday-Blitz-April-30-2024"]
[Site "Chess.com"]
[Date "2024.04.30"]
[Round "10"]
[White "Hrant_ChessMood"]
[Black "shimastream"]
[Result "1-0"]
[WhiteElo "2973"]
[BlackElo "3034"]
[TimeControl "180+1"]
[EndTime "15:55:55 PDT"]
[Termination "Hrant_ChessMood won by checkmate"]

1. Nf3 {[%clk 0:03:00.9]} 1... b6 {[%clk 0:03:00.9]} 2. c4 {[%clk 0:02:56.9]}
2... Bb7 {[%clk 0:03:00.7]} 3. Nc3 {[%clk 0:02:57.6]} 3... Nf6 {[%clk
0:03:00.7]} 4. d4 {[%clk 0:02:56]} 4... g6 {[%clk 0:02:58.9]} 5. Qc2 {[%clk
0:02:48.9]} 5... d5 {[%clk 0:02:43.8]} 6. cxd5 {[%clk 0:02:47.6]} 6... Nxd5
{[%clk 0:02:44.7]} 7. e4 {[%clk 0:02:45.5]} 7... Nxc3 {[%clk 0:02:44.8]} 8. bxc3
{[%clk 0:02:45.3]} 8... Bg7 {[%clk 0:02:45.5]} 9. Be2 {[%clk 0:02:35.1]} 9...
Nd7 {[%clk 0:02:43.7]} 10. Be3 {[%clk 0:02:26.3]} 10... O-O {[%clk 0:02:42]} 11.
O-O {[%clk 0:02:26.3]} 11... e5 {[%clk 0:02:39.3]} 12. Rad1 {[%clk 0:02:20.4]}
12... Qe7 {[%clk 0:02:38.7]} 13. d5 {[%clk 0:02:05.9]} 13... Kh8 {[%clk
0:02:36.1]} 14. Nd2 {[%clk 0:01:58]} 14... f5 {[%clk 0:02:30.8]} 15. f3 {[%clk
0:01:58]} 15... f4 {[%clk 0:02:31.4]} 16. Bf2 {[%clk 0:01:58.2]} 16... g5 {[%clk
0:02:31.4]} 17. c4 {[%clk 0:01:58.1]} 17... c5 {[%clk 0:02:31.5]} 18. dxc6
{[%clk 0:01:47.4]} 18... Bxc6 {[%clk 0:02:31.4]} 19. Nb1 {[%clk 0:01:47.6]}
19... Nc5 {[%clk 0:02:23.6]} 20. Nc3 {[%clk 0:01:46.9]} 20... Ne6 {[%clk
0:02:22.2]} 21. Nd5 {[%clk 0:01:44.6]} 21... Qf7 {[%clk 0:02:22.4]} 22. c5
{[%clk 0:01:32.6]} 22... bxc5 {[%clk 0:02:22.4]} 23. Bc4 {[%clk 0:01:32.9]}
23... Rac8 {[%clk 0:02:11.3]} 24. Qc3 {[%clk 0:01:28]} 24... Qe8 {[%clk
0:02:06.1]} 25. Qa3 {[%clk 0:01:25.6]} 25... Nd4 {[%clk 0:01:53.7]} 26. Qxa7
{[%clk 0:01:15.7]} 26... g4 {[%clk 0:01:51.5]} 27. fxg4 {[%clk 0:01:09.1]} 27...
Bxd5 {[%clk 0:01:48.5]} 28. exd5 {[%clk 0:00:40.8]} 28... e4 {[%clk 0:01:46]}
29. d6 {[%clk 0:00:32.6]} 29... Qg6 {[%clk 0:01:38]} 30. Bh4 {[%clk 0:00:22.9]}
30... Qxd6 {[%clk 0:01:35.2]} 31. Be7 {[%clk 0:00:20.6]} 31... Qe5 {[%clk
0:01:33.6]} 32. Bxf8 {[%clk 0:00:20.9]} 32... Rxf8 {[%clk 0:01:34.5]} 33. Kh1
{[%clk 0:00:19.6]} 33... e3 {[%clk 0:01:26.1]} 34. Rde1 {[%clk 0:00:19.6]} 34...
e2 {[%clk 0:01:18.9]} 35. Rg1 {[%clk 0:00:19.8]} 35... f3 {[%clk 0:01:11.7]} 36.
gxf3 {[%clk 0:00:20.2]} 36... Rxf3 {[%clk 0:01:12.3]} 37. Qa8+ {[%clk
0:00:19.4]} 37... Rf8 {[%clk 0:01:12.3]} 38. Qg2 {[%clk 0:00:18.1]} 38... Re8
{[%clk 0:01:11.2]} 39. a4 {[%clk 0:00:16.1]} 39... Qe3 {[%clk 0:01:01.2]} 40. a5
{[%clk 0:00:15.6]} 40... Qc3 {[%clk 0:01:00.9]} 41. Bd5 {[%clk 0:00:11.4]} 41...
Qxa5 {[%clk 0:01:00.3]} 42. g5 {[%clk 0:00:11]} 42... Qd2 {[%clk 0:00:57.2]} 43.
g6 {[%clk 0:00:11.5]} 43... h6 {[%clk 0:00:48.4]} 44. Bf7 {[%clk 0:00:11.5]}
44... Rd8 {[%clk 0:00:46.2]} 45. Bc4 {[%clk 0:00:12.1]} 45... Re8 {[%clk
0:00:43.7]} 46. Bf7 {[%clk 0:00:12.3]} 46... Rf8 {[%clk 0:00:40.7]} 47. Bc4
{[%clk 0:00:12.4]} 47... Nf3 {[%clk 0:00:11.4]} 48. Rxe2 {[%clk 0:00:11.1]}
48... Qc3 {[%clk 0:00:12]} 49. Rf1 {[%clk 0:00:08.1]} 49... Qxc4 {[%clk
0:00:12.1]} 50. Ref2 {[%clk 0:00:06.3]} 50... Rg8 {[%clk 0:00:01.8]} 51. Rxf3
{[%clk 0:00:06.5]} 51... Qd5 {[%clk 0:00:02.1]} 52. Rf7 {[%clk 0:00:06.3]} 52...
Qd3 {[%clk 0:00:02.1]} 53. R7f3 {[%clk 0:00:04.7]} 53... Qe4 {[%clk 0:00:01.7]}
54. Rf4 {[%clk 0:00:05]} 54... Qd3 {[%clk 0:00:02]} 55. Rf7 {[%clk 0:00:04.3]}
55... c4 {[%clk 0:00:02.2]} 56. Rc7 {[%clk 0:00:04.4]} 56... c3 {[%clk
0:00:02.4]} 57. h3 {[%clk 0:00:04.8]} 57... Qd4 {[%clk 0:00:01.8]} 58. Rff7
{[%clk 0:00:04.4]} 58... Qd1+ {[%clk 0:00:01.5]} 59. Qf1 {[%clk 0:00:03.5]}
59... Qd5+ {[%clk 0:00:01.5]} 60. Qf3 {[%clk 0:00:03.7]} 60... Qd4 {[%clk
0:00:01.4]} 61. Kg2 {[%clk 0:00:04.1]} 61... Qd2+ {[%clk 0:00:01.2]} 62. Qf2
{[%clk 0:00:04.4]} 62... Qg5+ {[%clk 0:00:01.3]} 63. Qg3 {[%clk 0:00:04.6]}
63... Qd2+ {[%clk 0:00:01.5]} 64. Kh1 {[%clk 0:00:05.3]} 64... Qd1+ {[%clk
0:00:01.9]} 65. Kh2 {[%clk 0:00:05.6]} 65... Qd2+ {[%clk 0:00:02.3]} 66. Qg2
{[%clk 0:00:04.8]} 66... Be5+ {[%clk 0:00:02.1]} 67. Kg1 {[%clk 0:00:04.2]}
67... Qd1+ {[%clk 0:00:02.4]} 68. Qf1 {[%clk 0:00:04.5]} 68... Qd4+ {[%clk
0:00:02.6]} 69. Kh1 {[%clk 0:00:04.8]} 69... Qd5+ {[%clk 0:00:02.8]} 70. Qf3
{[%clk 0:00:05.2]} 70... Qxf3+ {[%clk 0:00:00.1]} 71. Rxf3 {[%clk 0:00:05.4]}
71... Bg7 {[%clk 0:00:00.8]} 72. Rfxc3 {[%clk 0:00:05]} 72... Bxc3 {[%clk
0:00:00.6]} 73. Rh7# {[%clk 0:00:04.7]} 1-0

[Event "Late-Titled-Tuesday-Blitz-April-30-2024"]
[Site "Chess.com"]
[Date "2024.04.30"]
[Round "10"]
[White "Alex_Sahakyan2006"]
[Black "DanielNaroditsky"]
[Result "1-0"]
[WhiteElo "2841"]
[BlackElo "3016"]
[TimeControl "180+1"]
[EndTime "15:56:09 PDT"]
[Termination "Alex_Sahakyan2006 won by checkmate"]

1. d4 {[%clk 0:02:59.3]} 1... Nf6 {[%clk 0:03:00.1]} 2. Bg5 {[%clk 0:02:58.3]}
2... Ne4 {[%clk 0:03:00.4]} 3. Bf4 {[%clk 0:02:58.5]} 3... Nc6 {[%clk 0:03:01]}
4. Nf3 {[%clk 0:02:56.9]} 4... d5 {[%clk 0:03:01.2]} 5. Nbd2 {[%clk 0:02:56.4]}
5... Nxd2 {[%clk 0:03:01.1]} 6. Qxd2 {[%clk 0:02:56.7]} 6... Bf5 {[%clk
0:03:01.8]} 7. e3 {[%clk 0:02:56.6]} 7... a6 {[%clk 0:03:02.4]} 8. Bd3 {[%clk
0:02:56.7]} 8... Bxd3 {[%clk 0:03:03]} 9. Qxd3 {[%clk 0:02:57.1]} 9... e6 {[%clk
0:03:03.5]} 10. O-O {[%clk 0:02:57.5]} 10... Bd6 {[%clk 0:03:03.2]} 11. Bxd6
{[%clk 0:02:55.8]} 11... cxd6 {[%clk 0:03:04.1]} 12. c4 {[%clk 0:02:54.5]} 12...
dxc4 {[%clk 0:03:05]} 13. Qxc4 {[%clk 0:02:54.7]} 13... d5 {[%clk 0:03:05]} 14.
Qb3 {[%clk 0:02:54.9]} 14... Qe7 {[%clk 0:03:04.7]} 15. Rac1 {[%clk 0:02:54.7]}
15... O-O {[%clk 0:03:05.3]} 16. Rc5 {[%clk 0:02:52.8]} 16... Rac8 {[%clk
0:03:02.6]} 17. Rfc1 {[%clk 0:02:52.9]} 17... f6 {[%clk 0:03:01.2]} 18. h3
{[%clk 0:02:51.5]} 18... Rc7 {[%clk 0:03:01.6]} 19. Qb6 {[%clk 0:02:51.2]} 19...
Rfc8 {[%clk 0:03:01.5]} 20. b4 {[%clk 0:02:48.2]} 20... Re8 {[%clk 0:02:52.2]}
21. a4 {[%clk 0:02:47.4]} 21... Rd7 {[%clk 0:02:52.6]} 22. b5 {[%clk 0:02:47.2]}
22... axb5 {[%clk 0:02:53.5]} 23. axb5 {[%clk 0:02:48.1]} 23... Nd8 {[%clk
0:02:52]} 24. Rc7 {[%clk 0:02:44.7]} 24... Qd6 {[%clk 0:02:38]} 25. Qxd6 {[%clk
0:02:15.7]} 25... Rxd6 {[%clk 0:02:38.9]} 26. Ra1 {[%clk 0:02:08.3]} 26... Kf8
{[%clk 0:02:34.2]} 27. Ra8 {[%clk 0:02:05.4]} 27... Re7 {[%clk 0:02:31.8]} 28.
Rcc8 {[%clk 0:01:37.2]} 28... Ke8 {[%clk 0:02:25.5]} 29. Ne1 {[%clk 0:01:22.3]}
29... e5 {[%clk 0:02:13.2]} 30. Nd3 {[%clk 0:01:22.3]} 30... exd4 {[%clk
0:02:10.4]} 31. exd4 {[%clk 0:01:22.7]} 31... Re4 {[%clk 0:01:22.3]} 32. Nc5
{[%clk 0:01:20.9]} 32... Re7 {[%clk 0:01:22]} 33. Rab8 {[%clk 0:01:16.6]} 33...
b6 {[%clk 0:01:22.1]} 34. Nb7 {[%clk 0:01:12]} 34... Rxb7 {[%clk 0:01:18.8]} 35.
Rxb7 {[%clk 0:01:12.2]} 35... Rd7 {[%clk 0:01:18.7]} 36. Rxb6 {[%clk 0:01:08.4]}
36... Ke7 {[%clk 0:01:19]} 37. Rc1 {[%clk 0:00:46.5]} 37... Nb7 {[%clk
0:01:17.2]} 38. Rbc6 {[%clk 0:00:43.5]} 38... Nd6 {[%clk 0:01:11.2]} 39. b6
{[%clk 0:00:43.5]} 39... Nc4 {[%clk 0:01:10.7]} 40. Rb1 {[%clk 0:00:41.7]} 40...
Rb7 {[%clk 0:01:08.5]} 41. Rc7+ {[%clk 0:00:38.5]} 41... Rxc7 {[%clk 0:01:08.8]}
42. bxc7 {[%clk 0:00:39.4]} 42... Kd7 {[%clk 0:01:09.6]} 43. Rb5 {[%clk
0:00:37.4]} 43... Kxc7 {[%clk 0:01:07.8]} 44. Rxd5 {[%clk 0:00:37.5]} 44... Nb6
{[%clk 0:01:06.8]} 45. Ra5 {[%clk 0:00:37]} 45... Nc8 {[%clk 0:01:03.6]} 46. Kf1
{[%clk 0:00:35.8]} 46... Kb6 {[%clk 0:01:02.9]} 47. Ra1 {[%clk 0:00:35.7]} 47...
Ne7 {[%clk 0:01:01.5]} 48. Ke2 {[%clk 0:00:35.9]} 48... Nd5 {[%clk 0:00:58.5]}
49. g3 {[%clk 0:00:35]} 49... h5 {[%clk 0:00:56.3]} 50. Kd3 {[%clk 0:00:30.4]}
50... Kc6 {[%clk 0:00:54]} 51. Ra7 {[%clk 0:00:26.4]} 51... g6 {[%clk
0:00:50.2]} 52. Rg7 {[%clk 0:00:25.2]} 52... g5 {[%clk 0:00:50.6]} 53. Ke4
{[%clk 0:00:22.6]} 53... h4 {[%clk 0:00:44.2]} 54. gxh4 {[%clk 0:00:22.7]} 54...
gxh4 {[%clk 0:00:45.1]} 55. Rh7 {[%clk 0:00:22.3]} 55... Kd6 {[%clk 0:00:43.7]}
56. Rxh4 {[%clk 0:00:21.7]} 56... Ke6 {[%clk 0:00:44]} 57. Rh8 {[%clk
0:00:21.5]} 57... Nc3+ {[%clk 0:00:42.8]} 58. Kd3 {[%clk 0:00:21.6]} 58... Nd5
{[%clk 0:00:43.7]} 59. h4 {[%clk 0:00:21.9]} 59... Nf4+ {[%clk 0:00:43.6]} 60.
Ke4 {[%clk 0:00:20.9]} 60... Ng6 {[%clk 0:00:44.5]} 61. Rh6 {[%clk 0:00:20]}
61... Ne7 {[%clk 0:00:44.2]} 62. h5 {[%clk 0:00:15.8]} 62... Nd5 {[%clk
0:00:43.3]} 63. Rh8 {[%clk 0:00:11.8]} 63... f5+ {[%clk 0:00:43]} 64. Kf3 {[%clk
0:00:11.4]} 64... Kf6 {[%clk 0:00:40.4]} 65. h6 {[%clk 0:00:11.1]} 65... Kg6
{[%clk 0:00:37]} 66. h7 {[%clk 0:00:10.8]} 66... Nf6 {[%clk 0:00:37.7]} 67. d5
{[%clk 0:00:06.4]} 67... Ne4 {[%clk 0:00:38.2]} 68. d6 {[%clk 0:00:03.5]} 68...
Ng5+ {[%clk 0:00:37.8]} 69. Ke2 {[%clk 0:00:03.5]} 69... Nf7 {[%clk 0:00:35.7]}
70. d7 {[%clk 0:00:03.5]} 70... Nxh8 {[%clk 0:00:36.2]} 71. d8=Q {[%clk
0:00:03.3]} 71... Kxh7 {[%clk 0:00:37.1]} 72. Kf3 {[%clk 0:00:03.3]} 72... Nf7
{[%clk 0:00:34.5]} 73. Qf6 {[%clk 0:00:03.4]} 73... Kg8 {[%clk 0:00:28.6]} 74.
Qxf5 {[%clk 0:00:03.6]} 74... Kg7 {[%clk 0:00:29.1]} 75. Kf4 {[%clk 0:00:03.6]}
75... Kg8 {[%clk 0:00:29]} 76. Qf6 {[%clk 0:00:03.5]} 76... Kf8 {[%clk
0:00:28.6]} 77. Kf5 {[%clk 0:00:03.6]} 77... Kg8 {[%clk 0:00:29.2]} 78. f4
{[%clk 0:00:03.4]} 78... Nh8 {[%clk 0:00:27.7]} 79. Qe7 {[%clk 0:00:03.1]} 79...
Nf7 {[%clk 0:00:26.8]} 80. Kf6 {[%clk 0:00:03.5]} 80... Kh8 {[%clk 0:00:26.2]}
81. Qf8+ {[%clk 0:00:03.7]} 81... Kh7 {[%clk 0:00:26.6]} 82. Qg7# {[%clk
0:00:03.6]} 1-0

[Event "Late-Titled-Tuesday-Blitz-April-30-2024"]
[Site "Chess.com"]
[Date "2024.04.30"]
[Round "10"]
[White "Navyblue1"]
[Black "emeli_chess"]
[Result "1-0"]
[WhiteElo "2251"]
[BlackElo "2414"]
[TimeControl "180+1"]
[EndTime "15:56:13 PDT"]
[Termination "Navyblue1 won by checkmate"]

1. d4 {[%clk 0:02:55.1]} 1... Nf6 {[%clk 0:02:59.5]} 2. c4 {[%clk 0:02:54.8]}
2... e6 {[%clk 0:02:59.7]} 3. Nf3 {[%clk 0:02:53]} 3... d5 {[%clk 0:02:59.2]} 4.
Nc3 {[%clk 0:02:51.5]} 4... Bb4 {[%clk 0:02:59.1]} 5. Bd2 {[%clk 0:02:50.4]}
5... O-O {[%clk 0:02:58]} 6. e3 {[%clk 0:02:50.5]} 6... dxc4 {[%clk 0:02:54]} 7.
Bxc4 {[%clk 0:02:49.6]} 7... Nc6 {[%clk 0:02:54.2]} 8. O-O {[%clk 0:02:48.8]}
8... Bd6 {[%clk 0:02:54.2]} 9. Nb5 {[%clk 0:02:08.9]} 9... e5 {[%clk 0:02:50.5]}
10. Nxd6 {[%clk 0:02:08]} 10... cxd6 {[%clk 0:02:50.2]} 11. dxe5 {[%clk
0:02:07.1]} 11... dxe5 {[%clk 0:02:50]} 12. Bc3 {[%clk 0:02:04.5]} 12... Qxd1
{[%clk 0:02:41.7]} 13. Rfxd1 {[%clk 0:02:00.2]} 13... Bg4 {[%clk 0:02:41.5]} 14.
h3 {[%clk 0:01:50.6]} 14... Bxf3 {[%clk 0:02:40.8]} 15. gxf3 {[%clk 0:01:51.5]}
15... Rfd8 {[%clk 0:02:37.2]} 16. Kf1 {[%clk 0:01:45.9]} 16... a6 {[%clk
0:02:34.6]} 17. a4 {[%clk 0:01:39.5]} 17... Nd7 {[%clk 0:02:12.5]} 18. Ke2
{[%clk 0:01:18]} 18... Nb6 {[%clk 0:02:03.2]} 19. Bb3 {[%clk 0:01:15.4]} 19...
a5 {[%clk 0:01:55.9]} 20. Rg1 {[%clk 0:01:00.8]} 20... Kf8 {[%clk 0:01:51.1]}
21. f4 {[%clk 0:00:59.2]} 21... f6 {[%clk 0:01:48.5]} 22. fxe5 {[%clk
0:00:54.2]} 22... Nxe5 {[%clk 0:01:47.9]} 23. Bxe5 {[%clk 0:00:52.8]} 23... fxe5
{[%clk 0:01:47.5]} 24. Rg5 {[%clk 0:00:51.4]} 24... Re8 {[%clk 0:01:41.6]} 25.
Rf5+ {[%clk 0:00:45.5]} 25... Ke7 {[%clk 0:01:41.5]} 26. Rf7+ {[%clk 0:00:45.4]}
26... Kd6 {[%clk 0:01:38.6]} 27. Rxb7 {[%clk 0:00:42.8]} 27... Kc6 {[%clk
0:01:23.3]} 28. Rxg7 {[%clk 0:00:41.5]} 28... Nd7 {[%clk 0:01:06]} 29. Rc1+
{[%clk 0:00:38.7]} 29... Nc5 {[%clk 0:01:05.8]} 30. Rxh7 {[%clk 0:00:35]} 30...
Red8 {[%clk 0:00:51]} 31. Rh6+ {[%clk 0:00:22.3]} 31... Rd6 {[%clk 0:00:50.7]}
32. Rxd6+ {[%clk 0:00:22.2]} 32... Kxd6 {[%clk 0:00:51]} 33. Rd1+ {[%clk
0:00:22]} 33... Ke7 {[%clk 0:00:44.8]} 34. Bd5 {[%clk 0:00:22.2]} 34... Rb8
{[%clk 0:00:44.5]} 35. b3 {[%clk 0:00:19.9]} 35... Rh8 {[%clk 0:00:38.5]} 36.
Rc1 {[%clk 0:00:18.3]} 36... Kd6 {[%clk 0:00:37.7]} 37. e4 {[%clk 0:00:17.7]}
37... Rxh3 {[%clk 0:00:36.4]} 38. f3 {[%clk 0:00:17.6]} 38... Rh2+ {[%clk
0:00:27.1]} 39. Ke3 {[%clk 0:00:17.8]} 39... Rb2 {[%clk 0:00:27]} 40. Rc3 {[%clk
0:00:17.7]} 40... Rb1 {[%clk 0:00:20.8]} 41. Bc4 {[%clk 0:00:16.8]} 41... Nd7
{[%clk 0:00:17.8]} 42. Rd3+ {[%clk 0:00:16.5]} 42... Ke7 {[%clk 0:00:17.5]} 43.
Rd5 {[%clk 0:00:16.6]} 43... Re1+ {[%clk 0:00:16.1]} 44. Kf2 {[%clk 0:00:16.5]}
44... Rc1 {[%clk 0:00:14.3]} 45. Rxa5 {[%clk 0:00:16.4]} 45... Kd6 {[%clk
0:00:14.2]} 46. Rd5+ {[%clk 0:00:16.4]} 46... Ke7 {[%clk 0:00:13.9]} 47. Kg3
{[%clk 0:00:16.5]} 47... Rg1+ {[%clk 0:00:12.3]} 48. Kf2 {[%clk 0:00:17.1]}
48... Rc1 {[%clk 0:00:11.6]} 49. a5 {[%clk 0:00:17.6]} 49... Ra1 {[%clk
0:00:10.8]} 50. a6 {[%clk 0:00:17.8]} 50... Nb6 {[%clk 0:00:08.7]} 51. Rxe5+
{[%clk 0:00:16.8]} 51... Kd6 {[%clk 0:00:08.8]} 52. Rh5 {[%clk 0:00:16.3]} 52...
Kc6 {[%clk 0:00:05.3]} 53. Rh6+ {[%clk 0:00:15.8]} 53... Kc5 {[%clk 0:00:05.7]}
54. Rh5+ {[%clk 0:00:15.8]} 54... Kc6 {[%clk 0:00:05.3]} 55. f4 {[%clk
0:00:15.2]} 55... Ra3 {[%clk 0:00:03.8]} 56. f5 {[%clk 0:00:13.7]} 56... Nxc4
{[%clk 0:00:03.7]} 57. bxc4 {[%clk 0:00:13.5]} 57... Kd6 {[%clk 0:00:03.7]} 58.
Rh6+ {[%clk 0:00:13.5]} 58... Ke5 {[%clk 0:00:03.8]} 59. Re6+ {[%clk 0:00:13.6]}
59... Kf4 {[%clk 0:00:04.2]} 60. f6 {[%clk 0:00:13.4]} 60... Ra2+ {[%clk
0:00:04.6]} 61. Kg1 {[%clk 0:00:12.5]} 61... Kg3 {[%clk 0:00:04.6]} 62. Kf1
{[%clk 0:00:12.9]} 62... Kf3 {[%clk 0:00:05]} 63. Ke1 {[%clk 0:00:12.9]} 63...
Ke3 {[%clk 0:00:05.5]} 64. Kd1 {[%clk 0:00:13.1]} 64... Kd3 {[%clk 0:00:06]} 65.
Kc1 {[%clk 0:00:13.2]} 65... Kc3 {[%clk 0:00:06.2]} 66. Kb1 {[%clk 0:00:13.4]}
66... Rb2+ {[%clk 0:00:06.3]} 67. Kc1 {[%clk 0:00:12.8]} 67... Ra2 {[%clk
0:00:06.4]} 68. Kb1 {[%clk 0:00:12.6]} 68... Rb2+ {[%clk 0:00:06.8]} 69. Ka1
{[%clk 0:00:12.8]} 69... Rf2 {[%clk 0:00:05.9]} 70. Rb6 {[%clk 0:00:12.5]} 70...
Kxc4 {[%clk 0:00:05.5]} 71. a7 {[%clk 0:00:12.1]} 71... Kc5 {[%clk 0:00:05.7]}
72. Rb2 {[%clk 0:00:11.8]} 72... Rf1+ {[%clk 0:00:05.4]} 73. Ka2 {[%clk
0:00:11.1]} 73... Rxf6 {[%clk 0:00:04.1]} 74. a8=Q {[%clk 0:00:11.1]} 74... Rc6
{[%clk 0:00:03.4]} 75. Qa3+ {[%clk 0:00:11.2]} 75... Kd4 {[%clk 0:00:03]} 76.
Rd2+ {[%clk 0:00:11.6]} 76... Ke5 {[%clk 0:00:03]} 77. Qg3+ {[%clk 0:00:11.5]}
77... Kxe4 {[%clk 0:00:02.2]} 78. Qd3+ {[%clk 0:00:11.5]} 78... Kf4 {[%clk
0:00:01.6]} 79. Rf2+ {[%clk 0:00:11.6]} 79... Kg4 {[%clk 0:00:01.5]} 80. Qf3+
{[%clk 0:00:11.8]} 80... Kh4 {[%clk 0:00:01.5]} 81. Rh2+ {[%clk 0:00:11.9]}
81... Kg5 {[%clk 0:00:01.4]} 82. Rg2+ {[%clk 0:00:12.4]} 82... Kh4 {[%clk
0:00:01]} 83. Qg3+ {[%clk 0:00:12.7]} 83... Kh5 {[%clk 0:00:00.7]} 84. Qh3#
{[%clk 0:00:13.2]} 1-0

[Event "Late-Titled-Tuesday-Blitz-April-30-2024"]
[Site "Chess.com"]
[Date "2024.04.30"]
[Round "10"]
[White "Cambek64"]
[Black "vanyakuba"]
[Result "1-0"]
[WhiteElo "2510"]
[BlackElo "2403"]
[TimeControl "180+1"]
[EndTime "15:56:45 PDT"]
[Termination "Cambek64 won by resignation"]

1. e4 {[%clk 0:02:51.1]} 1... d5 {[%clk 0:02:51.8]} 2. Nc3 {[%clk 0:02:49.9]}
2... dxe4 {[%clk 0:02:51.7]} 3. Nxe4 {[%clk 0:02:50.4]} 3... Qd5 {[%clk
0:02:51.4]} 4. d3 {[%clk 0:02:46.9]} 4... Nc6 {[%clk 0:02:50.8]} 5. Nf3 {[%clk
0:02:47.1]} 5... Nf6 {[%clk 0:02:50.5]} 6. Qe2 {[%clk 0:02:38.1]} 6... Bg4
{[%clk 0:02:48]} 7. c3 {[%clk 0:02:26.4]} 7... O-O-O {[%clk 0:02:46.3]} 8. Bf4
{[%clk 0:02:01.9]} 8... e5 {[%clk 0:02:37.1]} 9. Bg5 {[%clk 0:01:57.5]} 9... Be7
{[%clk 0:02:35.9]} 10. Qe3 {[%clk 0:01:52.9]} 10... h6 {[%clk 0:02:21.4]} 11.
Bh4 {[%clk 0:01:36.2]} 11... g5 {[%clk 0:02:11]} 12. Bg3 {[%clk 0:01:36.1]}
12... Nh5 {[%clk 0:02:02.4]} 13. h3 {[%clk 0:01:28.5]} 13... Be6 {[%clk
0:01:56.6]} 14. Bh2 {[%clk 0:01:26.7]} 14... f5 {[%clk 0:01:46.1]} 15. Ned2
{[%clk 0:01:27]} 15... Nf4 {[%clk 0:01:43.1]} 16. Bxf4 {[%clk 0:01:25.6]} 16...
exf4 {[%clk 0:01:17.7]} 17. Qe2 {[%clk 0:01:25]} 17... Bf6 {[%clk 0:01:15.7]}
18. d4 {[%clk 0:01:24.6]} 18... Rhe8 {[%clk 0:01:13.6]} 19. Kd1 {[%clk
0:01:19.4]} 19... g4 {[%clk 0:01:03.6]} 20. Ne1 {[%clk 0:01:11.8]} 20... Bxd4
{[%clk 0:00:19.5]} 21. cxd4 {[%clk 0:01:05.8]} 21... Nxd4 {[%clk 0:00:20.4]} 22.
Qc4 {[%clk 0:01:01.7]} 22... Qd6 {[%clk 0:00:19]} 23. Qc3 {[%clk 0:01:01.1]}
23... f3 {[%clk 0:00:10.2]} 24. gxf3 {[%clk 0:00:57.4]} 24... Nxf3 {[%clk
0:00:08.7]} 25. Nxf3 {[%clk 0:00:57.1]} 25... gxf3 {[%clk 0:00:09.6]} 26. Bb5
{[%clk 0:00:43.4]} 26... c6 {[%clk 0:00:09.2]} 27. Re1 {[%clk 0:00:40.4]} 27...
Kb8 {[%clk 0:00:09]} 28. Ba4 {[%clk 0:00:37.7]} 28... Bd5 {[%clk 0:00:07.6]} 29.
Kc2 {[%clk 0:00:31.7]} 29... Qf4 {[%clk 0:00:06.2]} 30. Bb3 {[%clk 0:00:29]}
30... Re2 {[%clk 0:00:05.9]} 31. Rxe2 {[%clk 0:00:24.2]} 31... fxe2 {[%clk
0:00:06.8]} 32. Qe3 {[%clk 0:00:20.9]} 32... Qxe3 {[%clk 0:00:04.6]} 33. fxe3
{[%clk 0:00:20.4]} 33... Bg2 {[%clk 0:00:04.5]} 34. Re1 {[%clk 0:00:19.9]} 34...
Bxh3 {[%clk 0:00:04.6]} 35. Rxe2 {[%clk 0:00:19.8]} 35... Bg4 {[%clk 0:00:05.4]}
36. Rf2 {[%clk 0:00:19.3]} 36... Re8 {[%clk 0:00:05.8]} 37. Nf1 {[%clk 0:00:17]}
37... h5 {[%clk 0:00:05.8]} 38. Bc4 {[%clk 0:00:16.3]} 38... h4 {[%clk
0:00:06.1]} 39. Be2 {[%clk 0:00:16.9]} 39... h3 {[%clk 0:00:06.2]} 40. Bxg4
{[%clk 0:00:15.5]} 40... fxg4 {[%clk 0:00:07.1]} 41. Kd2 {[%clk 0:00:15.2]}
41... Kc7 {[%clk 0:00:06.8]} 42. Ke2 {[%clk 0:00:15.7]} 42... Rg8 {[%clk
0:00:07]} 43. Ng3 {[%clk 0:00:14.4]} 43... Rh8 {[%clk 0:00:04]} 44. Rh2 {[%clk
0:00:12.3]} 44... Kd6 {[%clk 0:00:04.3]} 45. Kf2 {[%clk 0:00:11.9]} 45... Ke5
{[%clk 0:00:04.8]} 46. Ne2 {[%clk 0:00:12.2]} 46... Rf8+ {[%clk 0:00:04.5]} 47.
Kg3 {[%clk 0:00:11.3]} 47... Rg8 {[%clk 0:00:05.2]} 48. Nf4 {[%clk 0:00:10.4]}
48... Ke4 {[%clk 0:00:05.2]} 49. Re2 {[%clk 0:00:09.7]} 49... c5 {[%clk
0:00:05.7]} 50. b3 {[%clk 0:00:08.8]} 50... b6 {[%clk 0:00:06.1]} 51. Nh5 {[%clk
0:00:08.3]} 51... Rg6 {[%clk 0:00:04.6]} 52. Nf4 {[%clk 0:00:07.7]} 52... Rg8
{[%clk 0:00:04]} 53. Nh5 {[%clk 0:00:06.4]} 53... Rg6 {[%clk 0:00:04.3]} 54. Rf2
{[%clk 0:00:06]} 54... Kxe3 {[%clk 0:00:03.5]} 55. Rf7 {[%clk 0:00:06.6]} 55...
Rd6 {[%clk 0:00:02.9]} 56. Re7+ {[%clk 0:00:06.7]} 56... Kd3 {[%clk 0:00:02.7]}
57. Nf4+ {[%clk 0:00:06.2]} 57... Kc3 {[%clk 0:00:02.2]} 58. Kxg4 {[%clk
0:00:06.4]} 58... Kb4 {[%clk 0:00:02.6]} 59. Rxa7 {[%clk 0:00:05.8]} 59... b5
{[%clk 0:00:02.6]} 60. Rh7 {[%clk 0:00:06]} 60... Rd2 {[%clk 0:00:02.4]} 61.
Rxh3 {[%clk 0:00:05.9]} 61... Rxa2 {[%clk 0:00:02.4]} 62. Nd3+ {[%clk
0:00:05.5]} 62... Ka3 {[%clk 0:00:02.6]} 63. Nxc5 {[%clk 0:00:05.1]} 63... Rb2
{[%clk 0:00:03]} 64. Kf4 {[%clk 0:00:04]} 64... Kb4 {[%clk 0:00:03.1]} 65. Rh5
{[%clk 0:00:03.3]} 65... Kc3 {[%clk 0:00:04]} 66. Ke4 {[%clk 0:00:02.9]} 66...
Re2+ {[%clk 0:00:04]} 67. Kd5 {[%clk 0:00:02.7]} 67... Re1 {[%clk 0:00:04.9]}
68. Kc6 {[%clk 0:00:03]} 68... b4 {[%clk 0:00:05.8]} 69. Kb5 {[%clk 0:00:03.3]}
69... Re8 {[%clk 0:00:05]} 70. Rh3+ {[%clk 0:00:03.1]} 70... Kb2 {[%clk
0:00:05.8]} 71. Na4+ {[%clk 0:00:02.7]} 71... Ka3 {[%clk 0:00:05.6]} 72. Nc5
{[%clk 0:00:02.5]} 72... Rb8+ {[%clk 0:00:06.1]} 73. Kc4 {[%clk 0:00:03.1]}
73... Rc8 {[%clk 0:00:06]} 74. Rh7 {[%clk 0:00:03.2]} 74... Kb2 {[%clk
0:00:05.7]} 75. Ra7 {[%clk 0:00:03.6]} 75... Rc6 {[%clk 0:00:03.9]} 76. Ra4
{[%clk 0:00:03.8]} 76... Rb6 {[%clk 0:00:04.1]} 77. Rxb4 {[%clk 0:00:03.6]}
77... Rh6 {[%clk 0:00:04.8]} 78. Ra4 {[%clk 0:00:04]} 78... Rh1 {[%clk
0:00:03.8]} 79. Kb5 {[%clk 0:00:04]} 79... Rc1 {[%clk 0:00:04.7]} 80. Rc4 {[%clk
0:00:03.9]} 80... Rh1 {[%clk 0:00:04.2]} 81. b4 {[%clk 0:00:03.9]} 81... Rh8
{[%clk 0:00:05.1]} 82. Rd4 {[%clk 0:00:04]} 82... Ka3 {[%clk 0:00:06]} 83. Kc4
{[%clk 0:00:04]} 83... Rh1 {[%clk 0:00:05.3]} 84. Nd3 {[%clk 0:00:03.4]} 84...
Rc1+ {[%clk 0:00:06.2]} 85. Nxc1 {[%clk 0:00:02.4]} 85... Kb2 {[%clk 0:00:05.9]}
86. b5 {[%clk 0:00:02.9]} 86... Kb1 {[%clk 0:00:06.8]} 87. b6 {[%clk 0:00:03.5]}
87... Ka1 {[%clk 0:00:07.3]} 88. b7 {[%clk 0:00:04.3]} 88... Kb1 {[%clk
0:00:07.3]} 89. b8=Q+ {[%clk 0:00:05.2]} 89... Kxc1 {[%clk 0:00:08.2]} 90. Qb5
{[%clk 0:00:04.9]} 1-0